[Event "*** Titled Tuesday Blitz"]
[Site "Chess.com"]
[Date "2021.02.09"]
[Round "4"]
[White "SanQui14"]
[Black "ohajek96"]
[Result "1-0"]
[WhiteElo "2444"]
[BlackElo "2249"]
[TimeControl "180+1"]
[EndTime "10:37:42 PST"]
[Termination "SanQui14 won by checkmate"]

1. d4 {[%clk 0:03:00.9]} 1... c5 {[%clk 0:02:59.6]} 2. d5 {[%clk 0:03:00.6]}
2... e6 {[%clk 0:02:59.7]} 3. Nc3 {[%clk 0:03:00.6]} 3... exd5 {[%clk
0:02:59.8]} 4. Nxd5 {[%clk 0:03:00.4]} 4... d6 {[%clk 0:02:59.8]} 5. Nf3 {[%clk
0:03:00.3]} 5... Nf6 {[%clk 0:03:00.1]} 6. Bg5 {[%clk 0:02:56.5]} 6... Be7
{[%clk 0:02:57.6]} 7. Nxe7 {[%clk 0:02:55.9]} 7... Qxe7 {[%clk 0:02:58.5]} 8. e3
{[%clk 0:02:56]} 8... Nc6 {[%clk 0:02:58.3]} 9. Bc4 {[%clk 0:02:55.5]} 9... Be6
{[%clk 0:02:58.1]} 10. Bxe6 {[%clk 0:02:54.9]} 10... fxe6 {[%clk 0:02:55.2]} 11.
O-O {[%clk 0:02:55]} 11... O-O {[%clk 0:02:53.7]} 12. Re1 {[%clk 0:02:54.9]}
12... d5 {[%clk 0:02:43.5]} 13. e4 {[%clk 0:02:46]} 13... dxe4 {[%clk
0:02:26.7]} 14. Rxe4 {[%clk 0:02:43.9]} 14... h6 {[%clk 0:02:27.2]} 15. Bxf6
{[%clk 0:02:37.8]} 15... Qxf6 {[%clk 0:02:28.1]} 16. c3 {[%clk 0:02:37.1]} 16...
Rad8 {[%clk 0:02:20.2]} 17. Qe2 {[%clk 0:02:35.1]} 17... Rd6 {[%clk 0:02:11.4]}
18. Re1 {[%clk 0:02:34.7]} 18... Rfd8 {[%clk 0:02:11.3]} 19. h3 {[%clk
0:02:31.5]} 19... Kf7 {[%clk 0:01:59.9]} 20. Qe3 {[%clk 0:02:26]} 20... g5
{[%clk 0:01:47]} 21. Qxc5 {[%clk 0:02:24.1]} 21... Rd1 {[%clk 0:01:42.1]} 22.
Kh2 {[%clk 0:02:09.2]} 22... R8d5 {[%clk 0:01:35.4]} 23. Qe3 {[%clk 0:02:04.2]}
23... R5d3 {[%clk 0:01:16.9]} 24. Qe2 {[%clk 0:01:56.3]} 24... Rxe1 {[%clk
0:01:14.2]} 25. Qxd3 {[%clk 0:01:50.4]} 25... Rxe4 {[%clk 0:00:59.1]} 26. Qxe4
{[%clk 0:01:51.3]} 26... Qf5 {[%clk 0:00:53.3]} 27. Qc4 {[%clk 0:01:38.6]} 27...
Qb1 {[%clk 0:00:42.7]} 28. Qb5 {[%clk 0:01:37.3]} 28... Nd8 {[%clk 0:00:32.2]}
29. Qd7+ {[%clk 0:01:36.2]} 29... Kf6 {[%clk 0:00:30.5]} 30. Qxd8+ {[%clk
0:01:36.5]} 30... Kf5 {[%clk 0:00:30.7]} 31. g4+ {[%clk 0:01:28.4]} 31... Ke4
{[%clk 0:00:23.2]} 32. Qd4+ {[%clk 0:01:26.6]} 32... Kxf3 {[%clk 0:00:23.1]} 33.
Qe3# {[%clk 0:01:25.6]} 1-0

[Event "*** Titled Tuesday Blitz"]
[Site "Chess.com"]
[Date "2021.02.09"]
[Round "4"]
[White "amatatanav"]
[Black "tan275"]
[Result "1-0"]
[WhiteElo "2430"]
[BlackElo "2233"]
[TimeControl "180+1"]
[EndTime "10:37:45 PST"]
[Termination "amatatanav won by resignation"]

1. e4 {[%clk 0:03:00.9]} 1... c5 {[%clk 0:02:58.2]} 2. Ne2 {[%clk 0:03:00.3]}
2... Nc6 {[%clk 0:02:57.9]} 3. Nbc3 {[%clk 0:02:59.5]} 3... g6 {[%clk
0:02:57.6]} 4. d4 {[%clk 0:02:59.2]} 4... cxd4 {[%clk 0:02:57.9]} 5. Nxd4 {[%clk
0:03:00.1]} 5... Bg7 {[%clk 0:02:58.2]} 6. Be3 {[%clk 0:03:00.7]} 6... Nf6
{[%clk 0:02:57.1]} 7. Nxc6 {[%clk 0:03:01.1]} 7... bxc6 {[%clk 0:02:55.7]} 8. e5
{[%clk 0:03:01.5]} 8... Ng8 {[%clk 0:02:55.8]} 9. Bd4 {[%clk 0:03:01.7]} 9...
Qc7 {[%clk 0:02:41.2]} 10. Bc4 {[%clk 0:03:00.9]} 10... Bxe5 {[%clk 0:02:32.6]}
11. O-O {[%clk 0:03:01.3]} 11... Bxd4 {[%clk 0:02:27.2]} 12. Qxd4 {[%clk
0:03:02.2]} 12... Nf6 {[%clk 0:02:27.2]} 13. Rfe1 {[%clk 0:03:00.3]} 13... O-O
{[%clk 0:02:00.7]} 14. Rxe7 {[%clk 0:02:53.9]} 14... Nh5 {[%clk 0:01:46.2]} 15.
Rae1 {[%clk 0:02:47.4]} 15... c5 {[%clk 0:01:34.6]} 16. Bxf7+ {[%clk 0:02:41.3]}
16... Rxf7 {[%clk 0:01:30.2]} 17. Re8+ {[%clk 0:02:36.2]} 17... Rf8 {[%clk
0:01:28.8]} 18. Qd5+ {[%clk 0:02:35.7]} 18... Kg7 {[%clk 0:01:23.7]} 19. R1e7+
{[%clk 0:02:09.3]} 19... Kh6 {[%clk 0:01:19.3]} 20. Rxf8 {[%clk 0:02:05.7]}
20... Bb7 {[%clk 0:00:44.8]} 21. Qd2+ {[%clk 0:02:03.8]} 21... g5 {[%clk
0:00:44.6]} 22. Rxa8 {[%clk 0:01:51.8]} 22... Qc6 {[%clk 0:00:39.3]} 23. Qd5
{[%clk 0:01:29.9]} 23... Bxa8 {[%clk 0:00:31.2]} 24. Rxd7 {[%clk 0:01:18]} 24...
Nf6 {[%clk 0:00:18.4]} 25. Qxc6 {[%clk 0:01:16.6]} 25... Bxc6 {[%clk 0:00:17.9]}
26. Rd6 {[%clk 0:01:17.5]} 1-0

[Event "*** Titled Tuesday Blitz"]
[Site "Chess.com"]
[Date "2021.02.09"]
[Round "4"]
[White "Abdimalik_Abdisalimov"]
[Black "Kretov_Evgenij"]
[Result "0-1"]
[WhiteElo "2291"]
[BlackElo "2499"]
[TimeControl "180+1"]
[EndTime "10:37:54 PST"]
[Termination "Kretov_Evgenij won by resignation"]

1. d4 {[%clk 0:03:00.9]} 1... Nf6 {[%clk 0:02:59.4]} 2. c4 {[%clk 0:03:01]} 2...
c5 {[%clk 0:02:59.3]} 3. d5 {[%clk 0:03:00]} 3... e5 {[%clk 0:02:59.6]} 4. Nc3
{[%clk 0:02:36.2]} 4... d6 {[%clk 0:02:59.3]} 5. e4 {[%clk 0:02:36.5]} 5... Be7
{[%clk 0:02:59.5]} 6. f3 {[%clk 0:02:34.3]} 6... O-O {[%clk 0:02:59.4]} 7. Be3
{[%clk 0:02:34.7]} 7... Ne8 {[%clk 0:02:59.4]} 8. Bd3 {[%clk 0:02:26.9]} 8...
Bg5 {[%clk 0:02:58.7]} 9. Qd2 {[%clk 0:02:23]} 9... Bxe3 {[%clk 0:02:58.5]} 10.
Qxe3 {[%clk 0:02:23.9]} 10... Nd7 {[%clk 0:02:58.4]} 11. Nge2 {[%clk 0:02:21.7]}
11... g6 {[%clk 0:02:58.1]} 12. g4 {[%clk 0:02:17.4]} 12... Ng7 {[%clk
0:02:56.3]} 13. O-O-O {[%clk 0:02:16.4]} 13... a6 {[%clk 0:02:48.3]} 14. h4
{[%clk 0:02:15.4]} 14... f6 {[%clk 0:02:48.2]} 15. h5 {[%clk 0:02:13.9]} 15...
g5 {[%clk 0:02:48]} 16. Kb1 {[%clk 0:02:02.4]} 16... Rb8 {[%clk 0:02:46.4]} 17.
Ng3 {[%clk 0:01:59.6]} 17... h6 {[%clk 0:02:44.9]} 18. Nf5 {[%clk 0:01:58.4]}
18... Nxf5 {[%clk 0:02:43.4]} 19. gxf5 {[%clk 0:01:58.2]} 19... Rf7 {[%clk
0:02:40.1]} 20. Rhg1 {[%clk 0:01:56.6]} 20... Rg7 {[%clk 0:02:37.9]} 21. Rd2
{[%clk 0:01:44]} 21... Qe8 {[%clk 0:02:37.2]} 22. Rh2 {[%clk 0:01:43.5]} 22...
Nf8 {[%clk 0:02:36.3]} 23. Qe2 {[%clk 0:01:25.7]} 23... Bd7 {[%clk 0:02:35.3]}
24. Nd1 {[%clk 0:01:14]} 24... b5 {[%clk 0:02:34.1]} 25. Ne3 {[%clk 0:01:13.5]}
25... Kh7 {[%clk 0:02:29.9]} 26. Ng4 {[%clk 0:01:08.7]} 26... Rf7 {[%clk
0:02:29.1]} 27. Rc1 {[%clk 0:00:58.9]} 27... Qd8 {[%clk 0:02:25.7]} 28. Qd2
{[%clk 0:00:43.2]} 28... Be8 {[%clk 0:02:22.8]} 29. Ka1 {[%clk 0:00:36.1]} 29...
Rfb7 {[%clk 0:02:22.6]} 30. Qc3 {[%clk 0:00:21.3]} 30... Kg7 {[%clk 0:02:20.3]}
31. b3 {[%clk 0:00:18.2]} 31... a5 {[%clk 0:02:12.5]} 32. cxb5 {[%clk
0:00:17.2]} 32... Bxb5 {[%clk 0:02:12.3]} 33. Bxb5 {[%clk 0:00:18.1]} 33... Rxb5
{[%clk 0:02:12.5]} 34. Qd3 {[%clk 0:00:11.1]} 34... Rb4 {[%clk 0:02:04.6]} 35.
Rc4 {[%clk 0:00:10.8]} 35... a4 {[%clk 0:02:03.8]} 36. Rxb4 {[%clk 0:00:09.9]}
36... Rxb4 {[%clk 0:02:03.6]} 37. bxa4 {[%clk 0:00:10.1]} 37... Qb6 {[%clk
0:02:00.7]} 38. Rh1 {[%clk 0:00:06.4]} 38... c4 {[%clk 0:01:57.6]} 39. Qc2
{[%clk 0:00:05.5]} 39... Qd4+ {[%clk 0:01:56.3]} 0-1

[Event "*** Titled Tuesday Blitz"]
[Site "Chess.com"]
[Date "2021.02.09"]
[Round "4"]
[White "ChampStan"]
[Black "Trickster_Pony"]
[Result "1-0"]
[WhiteElo "2220"]
[BlackElo "1490"]
[TimeControl "180+1"]
[EndTime "10:37:57 PST"]
[Termination "ChampStan won by resignation"]

1. d4 {[%clk 0:03:00.9]} 1... d5 {[%clk 0:02:57.7]} 2. c4 {[%clk 0:03:00.3]}
2... Nc6 {[%clk 0:02:55.6]} 3. cxd5 {[%clk 0:02:59.4]} 3... Qxd5 {[%clk
0:02:54.6]} 4. e3 {[%clk 0:02:59.6]} 4... e5 {[%clk 0:02:50]} 5. Nc3 {[%clk
0:02:59.6]} 5... Bb4 {[%clk 0:02:48.5]} 6. Bd2 {[%clk 0:03:00.1]} 6... Bxc3
{[%clk 0:02:47]} 7. Bxc3 {[%clk 0:03:01]} 7... exd4 {[%clk 0:02:44.1]} 8. Ne2
{[%clk 0:03:00.8]} 8... Bg4 {[%clk 0:02:40.5]} 9. f3 {[%clk 0:03:01.1]} 9... Be6
{[%clk 0:02:30.1]} 10. Nxd4 {[%clk 0:02:59.3]} 10... O-O-O {[%clk 0:02:15.5]}
11. Qa4 {[%clk 0:02:23.6]} 11... Nf6 {[%clk 0:01:29.7]} 12. Nxc6 {[%clk
0:02:07.7]} 12... Qxc6 {[%clk 0:01:29.4]} 13. Qxc6 {[%clk 0:01:55.1]} 13... bxc6
{[%clk 0:01:26.8]} 14. e4 {[%clk 0:01:55.4]} 14... Kb7 {[%clk 0:01:22.1]} 15.
Be2 {[%clk 0:01:51.7]} 15... Rhe8 {[%clk 0:01:15.6]} 16. Kf2 {[%clk 0:01:50.1]}
16... c5 {[%clk 0:00:57.2]} 17. b3 {[%clk 0:01:43.3]} 17... Rd6 {[%clk
0:00:52.3]} 18. e5 {[%clk 0:01:39.9]} 18... Rd5 {[%clk 0:00:37.8]} 19. exf6
{[%clk 0:01:38.9]} 19... gxf6 {[%clk 0:00:38.7]} 20. Rad1 {[%clk 0:01:35.2]}
20... Rf5 {[%clk 0:00:30.9]} 21. Bd3 {[%clk 0:01:32.7]} 21... Rg5 {[%clk
0:00:23.8]} 22. Bxf6 {[%clk 0:01:31.3]} 22... Rh5 {[%clk 0:00:17.3]} 23. Be4+
{[%clk 0:01:29.8]} 23... Kb6 {[%clk 0:00:16.8]} 24. h3 {[%clk 0:01:22.4]} 24...
Bf5 {[%clk 0:00:09.4]} 25. g4 {[%clk 0:01:18.5]} 25... Bxe4 {[%clk 0:00:07.6]}
26. gxh5 {[%clk 0:01:17.5]} 1-0

[Event "*** Titled Tuesday Blitz"]
[Site "Chess.com"]
[Date "2021.02.09"]
[Round "4"]
[White "ailime26"]
[Black "Manukyan_Artak"]
[Result "1-0"]
[WhiteElo "2118"]
[BlackElo "2371"]
[TimeControl "180+1"]
[EndTime "10:37:59 PST"]
[Termination "ailime26 won by resignation"]

1. e4 {[%clk 0:02:55.5]} 1... c6 {[%clk 0:02:59.6]} 2. d4 {[%clk 0:02:55.2]}
2... d5 {[%clk 0:03:00.5]} 3. exd5 {[%clk 0:02:55.5]} 3... cxd5 {[%clk
0:03:01.4]} 4. Bd3 {[%clk 0:02:55.2]} 4... Nc6 {[%clk 0:03:01.6]} 5. c3 {[%clk
0:02:55.1]} 5... e5 {[%clk 0:03:01.7]} 6. dxe5 {[%clk 0:02:54.1]} 6... Nxe5
{[%clk 0:03:02.6]} 7. Bb5+ {[%clk 0:02:52.7]} 7... Nc6 {[%clk 0:03:01.2]} 8. Nf3
{[%clk 0:02:51.9]} 8... Bc5 {[%clk 0:02:58.9]} 9. O-O {[%clk 0:02:51.1]} 9...
Ne7 {[%clk 0:02:58.9]} 10. Re1 {[%clk 0:02:51]} 10... O-O {[%clk 0:02:58.1]} 11.
Bg5 {[%clk 0:02:49.8]} 11... f6 {[%clk 0:02:55.4]} 12. Bf4 {[%clk 0:02:49.1]}
12... Ng6 {[%clk 0:02:46.4]} 13. Bg3 {[%clk 0:02:47.9]} 13... Bg4 {[%clk
0:02:38.2]} 14. Nbd2 {[%clk 0:02:46.7]} 14... Qb6 {[%clk 0:02:36.9]} 15. Ba4
{[%clk 0:02:41.8]} 15... Nge5 {[%clk 0:02:32.5]} 16. h3 {[%clk 0:02:39.5]} 16...
Bh5 {[%clk 0:02:28.3]} 17. b4 {[%clk 0:02:34.8]} 17... Bd6 {[%clk 0:02:17]} 18.
b5 {[%clk 0:02:32.6]} 18... Nxf3+ {[%clk 0:02:14.7]} 19. Nxf3 {[%clk 0:02:29.6]}
19... Bxg3 {[%clk 0:02:14.6]} 20. Qxd5+ {[%clk 0:02:28.3]} 20... Bf7 {[%clk
0:02:13.4]} 21. Qd2 {[%clk 0:02:22.1]} 21... Ne5 {[%clk 0:01:53.9]} 22. Nd4
{[%clk 0:02:15.9]} 22... Nc4 {[%clk 0:01:48.6]} 23. Qe2 {[%clk 0:02:09.3]} 23...
Be5 {[%clk 0:01:44.8]} 24. Nf5 {[%clk 0:02:05.2]} 24... Rae8 {[%clk 0:01:21]}
25. Qg4 {[%clk 0:01:46.6]} 25... g6 {[%clk 0:01:08.4]} 26. Nh6+ {[%clk 0:01:44]}
26... Kg7 {[%clk 0:01:03.6]} 27. Nxf7 {[%clk 0:01:43.3]} 27... Rxf7 {[%clk
0:01:01.3]} 28. Qxc4 {[%clk 0:01:43.7]} 28... Rc7 {[%clk 0:00:59.8]} 29. Qg4
{[%clk 0:01:41.6]} 29... Rxc3 {[%clk 0:00:56.4]} 30. Rad1 {[%clk 0:01:39.8]}
30... Re7 {[%clk 0:00:49.3]} 31. Rd7 {[%clk 0:01:36]} 31... Rc7 {[%clk
0:00:45.6]} 32. Rd8 {[%clk 0:01:33]} 32... Bh2+ {[%clk 0:00:38]} 33. Kxh2 {[%clk
0:01:31.7]} 33... Rxe1 {[%clk 0:00:38.1]} 34. Bb3 {[%clk 0:01:26.9]} 34... Rce7
{[%clk 0:00:32.9]} 35. Rg8+ {[%clk 0:01:25.8]} 1-0

[Event "*** Titled Tuesday Blitz"]
[Site "Chess.com"]
[Date "2021.02.09"]
[Round "4"]
[White "PrinceMurad09"]
[Black "MF1966Idrisov"]
[Result "1-0"]
[WhiteElo "2545"]
[BlackElo "2391"]
[TimeControl "180+1"]
[EndTime "10:38:02 PST"]
[Termination "PrinceMurad09 won by resignation"]

1. e4 {[%clk 0:03:00.9]} 1... c6 {[%clk 0:02:58.2]} 2. Nf3 {[%clk 0:03:00.9]}
2... d5 {[%clk 0:02:58.6]} 3. Nc3 {[%clk 0:03:01.5]} 3... dxe4 {[%clk
0:02:56.8]} 4. Nxe4 {[%clk 0:03:02]} 4... Nd7 {[%clk 0:02:56.9]} 5. Qe2 {[%clk
0:02:57.5]} 5... e6 {[%clk 0:02:56.8]} 6. g3 {[%clk 0:02:57.2]} 6... Ngf6 {[%clk
0:02:56.2]} 7. Bg2 {[%clk 0:02:57.6]} 7... Be7 {[%clk 0:02:56.3]} 8. O-O {[%clk
0:02:57.8]} 8... Nxe4 {[%clk 0:02:54.2]} 9. Qxe4 {[%clk 0:02:57.7]} 9... Nf6
{[%clk 0:02:54.8]} 10. Qa4 {[%clk 0:02:57]} 10... O-O {[%clk 0:02:55.1]} 11. b3
{[%clk 0:02:56.8]} 11... b5 {[%clk 0:02:54.1]} 12. Qf4 {[%clk 0:02:55.8]} 12...
Nd5 {[%clk 0:02:52.5]} 13. Qe4 {[%clk 0:02:53.5]} 13... Bf6 {[%clk 0:02:52]} 14.
Ne5 {[%clk 0:02:53.3]} 14... Qc7 {[%clk 0:02:47.6]} 15. Bb2 {[%clk 0:02:50.5]}
15... Bb7 {[%clk 0:02:44.7]} 16. f4 {[%clk 0:02:41.7]} 16... Rab8 {[%clk
0:02:38]} 17. g4 {[%clk 0:02:41.6]} 17... c5 {[%clk 0:02:34.5]} 18. g5 {[%clk
0:02:41.9]} 18... Be7 {[%clk 0:02:27.2]} 19. Qe2 {[%clk 0:02:35.8]} 19... Nb4
{[%clk 0:02:21.3]} 20. Bxb7 {[%clk 0:02:31.7]} 20... Qxb7 {[%clk 0:02:20.9]} 21.
d3 {[%clk 0:02:31.6]} 21... Nc6 {[%clk 0:02:09.5]} 22. Ng4 {[%clk 0:02:29.7]}
22... Nd4 {[%clk 0:02:08.8]} 23. Bxd4 {[%clk 0:02:29.6]} 23... cxd4 {[%clk
0:02:08.7]} 24. h4 {[%clk 0:02:30.1]} 24... Rbc8 {[%clk 0:02:05.8]} 25. h5
{[%clk 0:02:29.7]} 25... Rc5 {[%clk 0:01:54.1]} 26. h6 {[%clk 0:02:29.4]} 26...
g6 {[%clk 0:01:52.4]} 27. b4 {[%clk 0:02:22.5]} 27... Rf5 {[%clk 0:01:48.1]} 28.
Qe4 {[%clk 0:02:20]} 28... Qb6 {[%clk 0:01:33]} 29. Ne5 {[%clk 0:02:17.7]} 29...
Rc8 {[%clk 0:01:01.8]} 30. Rf2 {[%clk 0:02:10.6]} 30... Qd6 {[%clk 0:00:47.3]}
31. a3 {[%clk 0:02:06.6]} 31... f6 {[%clk 0:00:44.3]} 32. gxf6 {[%clk
0:01:59.4]} 32... Bxf6 {[%clk 0:00:44]} 33. Ng4 {[%clk 0:01:59.9]} 33... Bh4
{[%clk 0:00:38.5]} 34. Rf3 {[%clk 0:01:55.3]} 34... Rcf8 {[%clk 0:00:37.3]} 35.
Ne5 {[%clk 0:01:52.9]} 35... g5 {[%clk 0:00:33.5]} 36. Raf1 {[%clk 0:01:46.5]}
36... R8f6 {[%clk 0:00:22.4]} 37. Ng4 {[%clk 0:01:43.3]} 37... Rxf4 {[%clk
0:00:15.7]} 38. Nxf6+ {[%clk 0:01:42.9]} 38... Rxf6 {[%clk 0:00:12.1]} 39. Rxf6
{[%clk 0:01:43]} 39... Qg3+ {[%clk 0:00:12.7]} 40. Qg2 {[%clk 0:01:43.5]} 40...
Qe3+ {[%clk 0:00:12.2]} 41. Kh1 {[%clk 0:01:44]} 1-0

[Event "*** Titled Tuesday Blitz"]
[Site "Chess.com"]
[Date "2021.02.09"]
[Round "4"]
[White "BogdanDeac"]
[Black "andrzej"]
[Result "1-0"]
[WhiteElo "2990"]
[BlackElo "2337"]
[TimeControl "180+1"]
[EndTime "10:38:07 PST"]
[Termination "BogdanDeac won by resignation"]

1. Nf3 {[%clk 0:03:00.9]} 1... Nf6 {[%clk 0:02:58.9]} 2. b3 {[%clk 0:02:59.5]}
2... g6 {[%clk 0:02:58.2]} 3. Bb2 {[%clk 0:02:59.6]} 3... Bg7 {[%clk 0:02:58.8]}
4. g3 {[%clk 0:02:59.6]} 4... O-O {[%clk 0:02:58.8]} 5. Bg2 {[%clk 0:02:59.6]}
5... d6 {[%clk 0:02:59.5]} 6. d4 {[%clk 0:02:59.4]} 6... e5 {[%clk 0:02:58.7]}
7. dxe5 {[%clk 0:02:59]} 7... Ng4 {[%clk 0:02:59]} 8. O-O {[%clk 0:02:58.7]}
8... Nxe5 {[%clk 0:02:58.6]} 9. Qc1 {[%clk 0:02:58.7]} 9... Nbd7 {[%clk
0:02:52.3]} 10. c4 {[%clk 0:02:57.2]} 10... a5 {[%clk 0:02:50.5]} 11. Nc3 {[%clk
0:02:56.7]} 11... Qe7 {[%clk 0:02:50.2]} 12. Nd5 {[%clk 0:02:55]} 12... Qd8
{[%clk 0:02:50.4]} 13. Rd1 {[%clk 0:02:54.5]} 13... a4 {[%clk 0:02:43.2]} 14. b4
{[%clk 0:02:52.2]} 14... a3 {[%clk 0:02:38.6]} 15. Bc3 {[%clk 0:02:47.7]} 15...
c6 {[%clk 0:02:37.9]} 16. Ne3 {[%clk 0:02:40]} 16... Qe7 {[%clk 0:02:27.6]} 17.
Qd2 {[%clk 0:02:31.5]} 17... Re8 {[%clk 0:02:19]} 18. Nxe5 {[%clk 0:02:27.1]}
18... dxe5 {[%clk 0:02:06.8]} 19. c5 {[%clk 0:02:26.6]} 19... e4 {[%clk
0:01:53.1]} 20. Nc4 {[%clk 0:02:20.3]} 20... Bxc3 {[%clk 0:01:43]} 21. Qxc3
{[%clk 0:02:20]} 21... Qf6 {[%clk 0:01:21.9]} 22. Qe3 {[%clk 0:02:19.6]} 22...
Ne5 {[%clk 0:01:19.7]} 23. Nd6 {[%clk 0:02:18.1]} 23... Rf8 {[%clk 0:00:57.3]}
24. Nxe4 {[%clk 0:02:15.7]} 24... Qg7 {[%clk 0:00:53.4]} 25. Nd6 {[%clk
0:02:12.7]} 25... Rb8 {[%clk 0:00:42.2]} 26. Qxa3 {[%clk 0:02:02.4]} 26... Bg4
{[%clk 0:00:38.6]} 27. f3 {[%clk 0:01:58.5]} 27... Be6 {[%clk 0:00:32.6]} 28.
Qc3 {[%clk 0:01:58]} 28... Bd5 {[%clk 0:00:29.7]} 29. e4 {[%clk 0:01:52.3]}
29... Be6 {[%clk 0:00:23.8]} 30. f4 {[%clk 0:01:52.3]} 30... Ng4 {[%clk
0:00:24.1]} 31. e5 {[%clk 0:01:48.1]} 31... h5 {[%clk 0:00:22.3]} 32. a4 {[%clk
0:01:45]} 32... h4 {[%clk 0:00:22.1]} 33. h3 {[%clk 0:01:44.8]} 33... Nh6 {[%clk
0:00:21.9]} 34. g4 {[%clk 0:01:44.5]} 34... f6 {[%clk 0:00:20.5]} 35. exf6
{[%clk 0:01:44.3]} 35... Rxf6 {[%clk 0:00:20.8]} 36. g5 {[%clk 0:01:43.8]} 36...
Rxf4 {[%clk 0:00:17.7]} 37. Qxg7+ {[%clk 0:01:43.7]} 37... Kxg7 {[%clk
0:00:18.6]} 38. gxh6+ {[%clk 0:01:44.1]} 38... Kxh6 {[%clk 0:00:19.5]} 39. b5
{[%clk 0:01:44.4]} 39... Rxa4 {[%clk 0:00:19.7]} 40. Rxa4 {[%clk 0:01:43.5]} 1-0

[Event "*** Titled Tuesday Blitz"]
[Site "Chess.com"]
[Date "2021.02.09"]
[Round "4"]
[White "KononenkoD"]
[Black "platy3"]
[Result "0-1"]
[WhiteElo "2534"]
[BlackElo "2858"]
[TimeControl "180+1"]
[EndTime "10:38:12 PST"]
[Termination "platy3 won by resignation"]

1. d4 {[%clk 0:03:00.9]} 1... Nf6 {[%clk 0:02:58.7]} 2. c4 {[%clk 0:03:00.2]}
2... e6 {[%clk 0:02:59.3]} 3. g3 {[%clk 0:03:00.3]} 3... d5 {[%clk 0:02:59.4]}
4. Nf3 {[%clk 0:03:00]} 4... Be7 {[%clk 0:03:00.1]} 5. Bg2 {[%clk 0:03:00]} 5...
O-O {[%clk 0:03:00.7]} 6. O-O {[%clk 0:03:00.6]} 6... dxc4 {[%clk 0:03:01.2]} 7.
Qc2 {[%clk 0:03:00.6]} 7... a6 {[%clk 0:03:01.6]} 8. a4 {[%clk 0:03:00.6]} 8...
Bd7 {[%clk 0:03:02.1]} 9. Qxc4 {[%clk 0:03:01]} 9... Bc6 {[%clk 0:03:02.7]} 10.
Bf4 {[%clk 0:03:01.4]} 10... a5 {[%clk 0:03:01.6]} 11. Nc3 {[%clk 0:02:54.4]}
11... Na6 {[%clk 0:03:01.8]} 12. Rac1 {[%clk 0:02:48.3]} 12... Nb4 {[%clk
0:03:01.5]} 13. Rfe1 {[%clk 0:02:41.7]} 13... Bd6 {[%clk 0:02:55.6]} 14. Bg5
{[%clk 0:02:23.3]} 14... h6 {[%clk 0:02:52.4]} 15. Bxf6 {[%clk 0:02:23.4]} 15...
Qxf6 {[%clk 0:02:53.3]} 16. e4 {[%clk 0:02:23.7]} 16... Qd8 {[%clk 0:02:52.3]}
17. Nb5 {[%clk 0:02:15.1]} 17... Re8 {[%clk 0:02:41.4]} 18. Nxd6 {[%clk
0:02:13.4]} 18... cxd6 {[%clk 0:02:38.1]} 19. b3 {[%clk 0:02:09.7]} 19... Bxe4
{[%clk 0:02:34.8]} 20. Nd2 {[%clk 0:01:46.4]} 20... Bxg2 {[%clk 0:02:13.9]} 21.
Kxg2 {[%clk 0:01:47.3]} 21... Qb6 {[%clk 0:02:14.3]} 22. Re3 {[%clk 0:01:27.1]}
22... Nc6 {[%clk 0:02:01.7]} 23. Nf3 {[%clk 0:01:21.2]} 23... Nb4 {[%clk
0:01:50.8]} 24. Rec3 {[%clk 0:01:17.5]} 24... Na2 {[%clk 0:01:48.5]} 25. Nd2
{[%clk 0:00:59.5]} 25... Nxc1 {[%clk 0:01:47.3]} 26. Rxc1 {[%clk 0:00:58.9]}
26... Rac8 {[%clk 0:01:46.1]} 27. Qxc8 {[%clk 0:00:58.8]} 27... Rxc8 {[%clk
0:01:47]} 28. Rxc8+ {[%clk 0:00:59.1]} 28... Kh7 {[%clk 0:01:47.9]} 29. Rc4
{[%clk 0:00:56]} 29... d5 {[%clk 0:01:47.8]} 30. Rc5 {[%clk 0:00:56]} 30... Qb4
{[%clk 0:01:47.9]} 31. Nf3 {[%clk 0:00:54]} 31... Qxb3 {[%clk 0:01:47.7]} 32.
Rxa5 {[%clk 0:00:53]} 32... f6 {[%clk 0:01:46.4]} 33. Rb5 {[%clk 0:00:51.2]}
33... Qxa4 {[%clk 0:01:45.8]} 34. Rxb7 {[%clk 0:00:51.6]} 34... Qc2 {[%clk
0:01:44]} 35. Re7 {[%clk 0:00:43.3]} 35... Qe4 {[%clk 0:01:41]} 36. h3 {[%clk
0:00:43]} 36... h5 {[%clk 0:01:34]} 37. Re8 {[%clk 0:00:40.4]} 37... g5 {[%clk
0:01:29.5]} 38. Re7+ {[%clk 0:00:39.2]} 38... Kg6 {[%clk 0:01:25.7]} 39. Kg1
{[%clk 0:00:21.2]} 39... Qxf3 {[%clk 0:01:24.1]} 40. Rxe6 {[%clk 0:00:21.7]}
40... Qd1+ {[%clk 0:01:24.8]} 41. Kh2 {[%clk 0:00:20.4]} 41... Qxd4 {[%clk
0:01:25.7]} 42. Re8 {[%clk 0:00:19.6]} 42... Qxf2+ {[%clk 0:01:25.5]} 0-1

[Event "*** Titled Tuesday Blitz"]
[Site "Chess.com"]
[Date "2021.02.09"]
[Round "4"]
[White "JoliyRoger"]
[Black "shineatchess"]
[Result "1-0"]
[WhiteElo "2419"]
[BlackElo "2204"]
[TimeControl "180+1"]
[EndTime "10:38:15 PST"]
[Termination "JoliyRoger won by resignation"]

1. Nf3 {[%clk 0:02:55.5]} 1... f5 {[%clk 0:02:58.4]} 2. d4 {[%clk 0:02:55.2]}
2... Nf6 {[%clk 0:02:57]} 3. g3 {[%clk 0:02:56.1]} 3... g6 {[%clk 0:02:56.7]} 4.
Bg2 {[%clk 0:02:57]} 4... Bg7 {[%clk 0:02:57]} 5. b3 {[%clk 0:02:57.5]} 5... c5
{[%clk 0:02:50.9]} 6. Bb2 {[%clk 0:02:54.3]} 6... Na6 {[%clk 0:02:46.1]} 7. d5
{[%clk 0:02:49.6]} 7... d6 {[%clk 0:02:41.4]} 8. c4 {[%clk 0:02:48.3]} 8... Nc7
{[%clk 0:02:40.8]} 9. O-O {[%clk 0:02:47.5]} 9... O-O {[%clk 0:02:40.4]} 10.
Nbd2 {[%clk 0:02:38.4]} 10... b5 {[%clk 0:02:39.5]} 11. Qc2 {[%clk 0:02:32.8]}
11... f4 {[%clk 0:02:20.2]} 12. gxf4 {[%clk 0:02:26.9]} 12... Nh5 {[%clk
0:02:19.5]} 13. e3 {[%clk 0:02:25.7]} 13... Bf5 {[%clk 0:02:17]} 14. Qc1 {[%clk
0:02:25.4]} 14... Qd7 {[%clk 0:02:00.3]} 15. Bxg7 {[%clk 0:02:21.9]} 15... Nxg7
{[%clk 0:01:59.2]} 16. Ng5 {[%clk 0:02:14.6]} 16... h6 {[%clk 0:01:56.3]} 17.
Nge4 {[%clk 0:02:15]} 17... Bh3 {[%clk 0:01:53.3]} 18. Ng3 {[%clk 0:01:59.3]}
18... Bxg2 {[%clk 0:01:50.5]} 19. Kxg2 {[%clk 0:01:59.8]} 19... h5 {[%clk
0:01:50.8]} 20. h4 {[%clk 0:01:46.6]} 20... Nf5 {[%clk 0:01:48.1]} 21. Nf3
{[%clk 0:01:39]} 21... Kg7 {[%clk 0:01:32.5]} 22. e4 {[%clk 0:01:34.5]} 22...
Nh6 {[%clk 0:01:22.2]} 23. f5 {[%clk 0:01:34.3]} 23... gxf5 {[%clk 0:01:20.6]}
24. Qg5+ {[%clk 0:01:06.3]} 24... Kh7 {[%clk 0:01:18]} 25. Qxh5 {[%clk
0:00:59.8]} 25... Rf6 {[%clk 0:01:05.5]} 26. Nxf5 {[%clk 0:00:49.3]} 26... Rg8+
{[%clk 0:01:02.9]} 27. Ng5+ {[%clk 0:00:49.6]} 27... Kh8 {[%clk 0:00:49.3]} 28.
Nxh6 {[%clk 0:00:47.9]} 28... Kg7 {[%clk 0:00:48.7]} 29. Nxg8 {[%clk 0:00:46.3]}
29... Kxg8 {[%clk 0:00:32.3]} 30. Qh7+ {[%clk 0:00:45.6]} 1-0